bitfinex/quotes_SOLUSD_20241220
["timestamp","ask_amount","ask_price","bid_price","bid_amount"]
[1734705664614,15.04282606,189.54,189.45,17.48555513]
[1734705664942,15.04282606,189.52,189.43,38.87527306]
[1734705665147,24.11590986,189.51,189.44,0.79150395]
[1734705665344,20.0,189.58,189.46,24.11590986]
[1734705665517,24.11590986,189.55,189.47,0.79130827]
[1734705665720,24.11590986,189.53,189.44,24.90724197]
[1734705666242,24.11590986,189.47,189.4,22.667915]
[1734705666545,24.11590986,189.49,189.41,0.79167112]
[1734705666730,24.11590986,189.51,189.42,24.11590986]
[1734705666929,24.11590986,189.51,189.43,0.79158819]
[1734705667139,24.11590986,189.47,189.4,0.79157912]
[1734705667637,24.11590986,189.49,189.4,24.90748898]
[1734705667942,24.11590986,189.47,189.41,0.12549]
[1734705668134,24.11590986,189.47,189.39,0.79161462]
[1734705668438,24.11590986,189.45,189.39,0.79161462]
[1734705668736,24.11590986,189.45,189.36,24.11590986]
[1734705669112,24.11590986,189.43,189.36,24.11590986]
[1734705669442,24.11590986,189.43,189.35,0.79170797]
[1734705670238,24.11590986,189.45,189.36,24.11590986]
[1734705670418,24.11590986,189.47,189.38,24.11590986]
[1734705670631,24.11590986,189.45,189.37,0.79174693]
[1734705670923,24.11590986,189.47,189.39,0.12549]
[1734705671128,24.11590986,189.53,189.45,0.12549]
[1734705671331,6.5164,189.59,189.45,0.12549]
[1734705671332,24.11590986,189.55,189.48,24.11590986]
[1734705671525,24.11590986,189.53,189.49,0.79126821]
[1734705671818,24.11590986,189.53,189.47,0.79132696]
[1734705672124,24.11590986,189.55,189.48,0.12549]
[1734705672312,24.11590986,189.59,189.5,24.24139986]
[1734705672512,24.11590986,189.59,189.52,0.12549]
[1734705673121,24.11590986,189.61,189.54,0.12549]
[1734705673319,24.11590986,189.61,189.56,0.12549]
[1734705673516,24.11590986,189.61,189.55,0.79101549]
[1734705674243,24.11590986,189.59,189.53,0.79102736]
[1734705674442,24.11590986,189.61,189.54,0.12549]
[1734705674617,24.11590986,189.59,189.53,0.79102736]
[1734705674818,24.11590986,189.59,189.5,24.11590986]
[1734705675033,24.11590986,189.59,189.52,0.12549]
[1734705675241,24.11590986,189.57,189.52,0.12549]
[1734705675420,24.11590986,189.59,189.52,0.12549]
[1734705675624,24.11590986,189.59,189.53,0.7911365]
[1734705676243,24.11590986,189.63,189.5,0.79110029]
[1734705676244,24.11590986,189.57,189.5,0.79110029]
[1734705676431,24.11590986,189.55,189.46,24.90701015]
[1734705676943,24.11590986,189.55,189.48,24.11590986]
[1734705677438,24.11590986,189.53,189.44,24.11590986]
[1734705677617,24.11590986,189.55,189.46,24.11590986]
[1734705677818,24.11590986,189.55,189.47,0.79125323]
[1734705678916,24.11590986,189.57,189.48,24.24139986]
[1734705679125,8.1028,189.45,189.22,6.4871]
[1734705679423,24.11590986,189.32,189.23,0.79194445]
[1734705679626,24.11590986,189.32,189.25,21.157166]
[1734705679833,24.11590986,189.32,189.26,0.79222312]
[1734705680453,24.11590986,189.32,189.24,24.11590986]
[1734705680611,24.11590986,189.32,189.24,24.9081315]
[1734705681139,24.11590986,189.35,189.26,24.11590986]
[1734705681444,24.11590986,189.35,189.28,24.11590986]
[1734705681665,24.11590986,189.37,189.29,0.79199086]
[1734705681834,24.11590986,189.37,189.32,0.12549]
[1734705682442,24.11590986,189.39,189.32,25.03339312]
[1734705682647,24.11590986,189.41,189.35,0.12549]
[1734705682939,8.1028,189.45,189.35,0.12549]
[1734705682940,24.11590986,189.47,189.39,0.12549]
[1734705683153,24.11590986,189.49,189.43,0.12549]
[1734705683324,24.11590986,189.49,189.43,0.91692508]
[1734705683921,24.11590986,189.53,189.45,0.12549]
[1734705684120,24.11590986,189.51,189.45,0.12549]
[1734705684327,24.11590986,189.47,189.4,24.11590986]
[1734705684631,24.11590986,189.49,189.42,0.12549]
[1734705685032,24.11590986,189.47,189.39,24.11590986]
[1734705685247,24.11590986,189.47,189.4,0.12549]
[1734705685433,24.11590986,189.49,189.41,24.11590986]
[1734705685852,24.11590986,189.53,189.44,0.12549]
[1734705686158,24.11590986,189.51,189.43,24.11590986]
[1734705686336,24.11590986,189.49,189.43,0.12549]
[1734705686526,24.11590986,189.49,189.41,24.11590986]
[1734705686716,24.11590986,189.47,189.39,24.11590986]
[1734705686916,24.11590986,189.49,189.4,0.12549]
[1734705687121,24.11590986,189.49,189.42,0.12549]
[1734705687338,24.11590986,189.49,189.42,0.91702366]
[1734705688050,24.11590986,189.51,189.43,24.11590986]
[1734705688253,0.79122883,189.59,189.49,0.12549]
[1734705688440,24.11590986,189.56,189.49,0.12549]
[1734705688944,39.17187506,189.56,189.49,0.12549]
[1734705689254,39.17187506,189.56,189.5,0.79129366]
[1734705690064,39.17187506,189.56,189.47,39.17187506]
[1734705690355,39.17187506,189.56,189.49,0.12549]
[1734705690759,39.17187506,189.56,189.49,39.29736506]
[1734705690926,39.17187506,189.54,189.47,39.17187506]
[1734705691123,39.17187506,189.56,189.47,39.17187506]
[1734705691327,2.35452883,189.6,189.49,39.17187506]
[1734705691627,39.17187506,189.59,189.52,0.12549]
[1734705691831,39.17187506,189.61,189.54,0.12549]
[1734705692035,39.17187506,189.61,189.53,39.17187506]
[1734705692227,39.17187506,189.61,189.52,0.79104444]
[1734705692450,39.17187506,189.55,189.47,39.17187506]
[1734705692634,39.17187506,189.55,189.48,0.79128277]
[1734705693052,39.17187506,189.55,189.45,39.17187506]
[1734705693455,39.17187506,189.55,189.46,0.12549]
[1734705693756,58.72867506,189.63,189.41,45.36797506]
[1734705693757,39.17187506,189.51,189.41,45.36797506]
[1734705693956,39.17187506,189.51,189.41,39.17187506]
[1734705694169,0.79122883,189.53,189.35,6.2525]
[1734705694327,39.17187506,189.45,189.36,39.17187506]
[1734705694529,39.17187506,189.43,189.36,39.17187506]
[1734705694725,23.776884,189.51,189.34,0.39656332]
[1734705694726,0.9897158,189.5,189.34,0.39656332]
[1734705695030,39.17187506,189.35,189.31,0.655121]
[1734705695559,39.17187506,189.39,189.31,0.655121]
[1734705695766,39.17187506,189.39,189.31,1.05262636]
[1734705696163,39.17187506,189.39,189.31,0.655121]
[1734705696362,39.17187506,189.35,189.31,0.655121]
[1734705696986,39.17187506,189.33,189.31,0.655121]
[1734705698078,41.24940621,189.33,189.31,0.655121]
[1734705698527,39.17187506,189.33,189.31,0.655121]
[1734705698908,0.99046653,189.32,189.31,0.655121]
[1734705699074,0.99046653,189.32,189.31,1e-08]
[1734705699189,137.1,189.19,189.15,39.57033814]
[1734705699526,137.1,189.19,189.13,39.17187506]
[1734705699688,137.1,189.19,189.11,39.17187506]
[1734705699884,39.17187506,189.2,189.11,39.17187506]
[1734705700189,39.17187506,189.2,189.12,1.05430769]
[1734705700399,39.17187506,189.18,189.12,1.05430769]
[1734705700604,0.99090617,189.26,189.12,1.05430769]
[1734705700605,39.17187506,189.16,189.12,1.05430769]
[1734705700838,39.17187506,189.14,189.12,0.655121]
[1734705702425,39.17187506,189.14,189.12,1e-08]
[1734705703518,0.99146548,189.13,189.12,1e-08]
[1734705703817,0.12549,189.12,188.95,39.57233862]
[1734705704126,39.17187506,188.99,188.94,0.655121]
[1734705704698,39.17187506,188.97,188.94,0.655121]
[1734705705018,39.17187506,188.95,188.94,0.655121]
[1734705707036,39.17187506,188.95,188.79,17.52409843]
[1734705707037,0.12549,188.94,188.8,0.40230255]
[1734705707198,39.17187506,188.85,188.8,0.40230255]
[1734705707377,39.17187506,188.81,188.76,0.40263203]
[1734705707581,39.17187506,188.83,188.75,0.655121]
[1734705707790,39.17187506,188.81,188.75,0.655121]
[1734705708189,39.17187506,188.79,188.75,0.50800146]
[1734705708416,39.17187506,188.82,188.75,0.50800146]
[1734705708417,39.17187506,188.77,188.75,0.50800146]
[1734705708910,39.17187506,188.77,188.68,0.40356334]
[1734705708911,39.17187506,188.76,188.6,0.40402667]
[1734705709096,39.17187506,188.82,188.6,0.40402667]
[1734705709097,39.17187506,188.64,188.6,0.40402667]
[1734705709314,39.17187506,188.73,188.54,39.17187506]
[1734705709315,39.17187506,188.62,188.54,39.17187506]
[1734705709617,39.17187506,188.66,188.57,39.82699606]
[1734705709839,39.17187506,188.64,188.57,39.82699606]
[1734705710113,39.17187506,188.7,188.61,39.17187506]
[1734705710309,39.17187506,188.74,188.65,39.17187506]
[1734705710511,39.17187506,188.74,188.67,39.17187506]
[1734705710729,39.17187506,188.76,188.69,0.12549]
[1734705710881,39.17187506,188.78,188.7,0.40378449]
[1734705711327,39.17187506,188.76,188.7,0.40378449]
[1734705711685,39.17187506,188.82,188.76,20.0]
[1734705711881,39.17187506,188.84,188.77,23.776884]
[1734705712152,39.17187506,188.88,188.8,39.17187506]
[1734705712298,39.17187506,188.88,188.81,24.17961458]
[1734705712500,39.17187506,188.86,188.78,39.17187506]
[1734705712795,39.17187506,188.86,188.77,24.1795454]
[1734705712991,39.17187506,188.86,188.79,23.776884]
[1734705713216,39.17187506,188.86,188.79,24.17972039]
[1734705713406,39.17187506,188.84,188.79,23.776884]
[1734705713752,39.17187506,188.86,188.82,20.0]
[1734705713933,78.34375012,188.83,188.68,39.17187506]
[1734705714131,39.17187506,188.77,188.68,39.17187506]
[1734705714411,39.17187506,188.77,188.68,39.57565184]
[1734705714708,39.17187506,188.77,188.68,39.17187506]
[1734705714922,39.17187506,188.75,188.67,0.40380015]
[1734705715211,39.17187506,188.77,188.69,20.0]
[1734705715504,39.17187506,188.83,188.75,20.0]
[1734705715681,39.17187506,188.85,188.77,20.0]
[1734705715874,39.17187506,188.85,188.81,20.0]
[1734705716068,8.57648028,188.96,188.82,23.776884]
[1734705716069,39.17187506,188.89,188.82,23.776884]
[1734705716308,39.17187506,188.91,188.89,20.0]
[1734705716487,1.5167,188.97,188.89,20.0]
[1734705716488,39.17187506,188.93,188.89,20.0]
[1734705717299,39.17187506,188.97,188.93,20.0]
[1734705717497,39.17187506,188.99,188.93,20.0]
[1734705717883,39.17187506,188.97,188.93,20.0]
[1734705718085,39.17187506,188.99,188.93,20.0]
[1734705718401,39.17187506,189.01,188.95,20.0]
[1734705718605,39.17187506,188.99,188.95,20.0]
[1734705718898,39.17187506,188.97,188.93,20.0]
[1734705719213,39.17187506,188.94,188.89,20.0]
[1734705719498,39.17187506,188.9,188.83,0.4022607]
[1734705719882,39.17187506,188.88,188.8,39.17187506]
[1734705720082,39.17187506,188.88,188.78,0.40253052]
[1734705720083,39.17187506,188.88,188.78,39.57440558]
[1734705720283,39.17187506,188.88,188.79,0.12549]
[1734705720497,39.17187506,188.9,188.81,0.12549]
[1734705720793,39.17187506,188.92,188.85,0.12549]
[1734705721092,39.17187506,188.92,188.87,20.0]
[1734705721508,39.17187506,188.92,188.85,20.0]
[1734705721676,39.17187506,188.9,188.82,39.17187506]
[1734705721873,0.99272931,188.97,188.8,39.17187506]
[1734705721874,39.17187506,188.88,188.8,39.17187506]
[1734705722273,39.17187506,188.88,188.8,39.57455506]
[1734705722469,39.17187506,188.9,188.81,0.12549]
[1734705722696,39.17187506,188.92,188.83,0.12549]
[1734705722882,39.17187506,188.94,188.85,0.12549]
[1734705723081,39.17187506,188.98,188.91,20.0]
[1734705723403,39.17187506,188.96,188.91,20.0]
[1734705723601,39.17187506,188.94,188.89,20.0]
[1734705723770,39.17187506,188.96,188.89,20.0]
[1734705723970,39.17187506,188.96,188.91,20.0]
[1734705724208,39.17187506,188.94,188.91,20.0]
[1734705724584,39.17187506,188.92,188.79,0.40183426]
[1734705724785,39.17187506,188.87,188.79,0.40183426]
[1734705724995,39.17187506,188.85,188.79,13.2418]
[1734705725173,39.17187506,188.85,188.77,6.94950504]
[1734705725376,39.17187506,188.85,188.78,0.12549]
[1734705725577,39.17187506,188.81,188.72,39.17187506]
[1734705725803,39.17187506,188.79,188.71,13.65031893]
[1734705725988,39.17187506,188.77,188.71,13.65031893]
[1734705726197,39.17187506,188.77,188.72,0.12549]
[1734705726404,39.17187506,188.75,188.68,0.40369188]
[1734705726783,39.17187506,188.77,188.69,13.2492]
[1734705727180,39.17187506,188.77,188.7,0.4036876]
[1734705727597,39.17187506,188.77,188.71,0.12549]
[1734705727806,39.17187506,188.77,188.7,0.4036876]
[1734705728181,0.99317668,188.81,188.7,0.4036876]
[1734705728386,39.17187506,188.75,188.7,0.4036876]
[1734705728611,39.17187506,188.75,188.71,0.12549]
[1734705728919,39.17187506,188.75,188.7,0.4036876]
[1734705728920,39.17187506,188.81,188.73,0.12549]
[1734705729287,39.17187506,188.79,188.73,0.12549]
[1734705729608,39.17187506,188.83,188.76,0.12549]
[1734705729798,39.17187506,188.85,188.79,20.0]
[1734705729998,39.17187506,188.89,188.84,0.12549]
[1734705730510,39.17187506,188.85,188.83,20.0]
[1734705730683,39.17187506,188.87,188.81,20.0]
[1734705731024,39.17187506,188.87,188.82,20.0]
[1734705731384,39.17187506,188.89,188.82,33.2401]
[1734705731601,39.17187506,188.87,188.82,33.2401]
[1734705731996,39.17187506,188.83,188.72,65.66607506]
[1734705732211,39.17187506,188.83,188.74,39.17187506]
[1734705732413,39.17187506,188.85,188.76,39.29736506]
[1734705732589,39.17187506,188.85,188.76,0.12549]
[1734705732791,39.17187506,188.83,188.76,0.12549]
[1734705733098,39.17187506,188.81,188.74,13.2452]
[1734705733290,39.17187506,188.83,188.77,20.0]
[1734705733505,39.17187506,188.85,188.78,0.12549]
[1734705733709,39.17187506,188.85,188.8,0.12549]
[1734705733895,39.17187506,188.87,188.81,20.0]
[1734705734091,39.17187506,188.85,188.81,20.0]
[1734705734315,39.17187506,188.83,188.81,20.0]
[1734705734526,39.17187506,188.85,188.8,0.12549]
[1734705734733,39.17187506,188.83,188.8,20.0]
[1734705735602,39.17187506,188.81,188.8,20.0]
[1734705736504,39.17187506,188.83,188.8,20.0]
[1734705737115,39.17187506,188.89,188.84,20.0]
[1734705738021,39.17187506,188.87,188.84,20.0]
[1734705738377,39.17187506,188.85,188.84,20.0]
[1734705738547,39.17187506,188.85,188.8,20.0]
[1734705738832,39.17187506,188.81,188.73,13.2461]
[1734705739142,39.17187506,188.78,188.73,13.2461]
[1734705739930,39.17187506,188.78,188.68,39.17187506]
[1734705740099,39.17187506,188.74,188.69,13.2487]
[1734705740302,39.17187506,188.7,188.66,0.40354122]
[1734705740631,39.17187506,188.68,188.57,1.0594261]
[1734705740930,39.17187506,188.6,188.57,1.0594261]
[1734705741232,39.17187506,188.58,188.57,0.655121]
[1734705741606,39.17187506,188.62,188.57,0.655121]
[1734705741806,39.17187506,188.64,188.57,1.06024109]
[1734705742143,39.17187506,188.66,188.57,40.23211615]
[1734705742345,39.17187506,188.64,188.57,1.06024109]
[1734705742545,39.17187506,188.64,188.61,20.0]
[1734705742742,39.17187506,188.66,188.61,20.0]
[1734705742940,40.69017506,188.73,188.61,20.0]
[1734705742941,39.17187506,188.68,188.65,20.0]
[1734705744929,39.17187506,188.66,188.65,20.0]
[1734705745525,39.17187506,188.66,188.61,20.12549]
[1734705745739,39.17187506,188.63,188.58,13.2563]
[1734705745938,39.17187506,188.63,188.57,0.655121]
[1734705745939,39.17187506,188.6,188.57,0.655121]
[1734705747050,39.17187506,188.64,188.58,0.12549]
[1734705747245,0.99360071,188.72,188.58,0.12549]
[1734705747246,39.17187506,188.66,188.6,0.12549]
[1734705747455,39.17187506,188.61,188.57,0.655121]
[1734705747755,39.17187506,188.6,188.57,0.655121]
[1734705748125,39.17187506,188.58,188.57,0.655121]
[1734705749630,78.34375012,188.58,188.57,0.655121]
[1734705749936,78.34375012,188.58,188.52,0.28598939]
[1734705750142,39.17187506,188.53,188.52,0.28598939]
[1734705751457,78.34375012,188.47,188.46,0.376965]
[1734705751627,39.17187506,188.47,188.46,0.376965]
[1734705753667,78.34375012,188.47,188.46,0.376965]
[1734705754749,78.34375012,188.47,188.37,13.2712]
[1734705754960,39.17187506,188.38,188.36,0.40709244]
[1734705755141,39.17187506,188.38,188.34,0.4074256]
[1734705755343,39.17187506,188.36,188.34,0.4074256]
[1734705755532,39.17187506,188.36,188.33,13.2739]
[1734705755733,39.17187506,188.38,188.33,13.2739]
[1734705755954,39.17187506,188.36,188.33,13.2739]
[1734705756254,39.17187506,188.34,188.3,0.40757638]
[1734705756554,39.17187506,188.31,188.29,13.2768]
[1734705757337,39.17187506,188.31,188.26,0.6993426]
[1734705757663,39.17187506,188.29,188.28,20.0]
[1734705758196,39.17187506,188.35,188.31,20.0]
[1734705758366,39.17187506,188.35,188.32,0.12549]
[1734705758908,39.17187506,188.37,188.32,0.12549]
[1734705759196,39.17187506,188.37,188.36,0.12549]
[1734705759345,39.17187506,188.47,188.36,0.12549]
[1734705759346,39.17187506,188.47,188.36,23.902374]
[1734705759560,39.17187506,188.41,188.39,20.0]
[1734705761108,39.17187506,188.41,188.33,0.40723341]
[1734705761375,0.99496251,188.46,188.28,26.5561]
[1734705761376,39.17187506,188.34,188.29,0.40779674]
[1734705761754,39.17187506,188.32,188.29,0.40779674]
[1734705761957,39.17187506,188.32,188.28,13.2775]
[1734705762260,39.17187506,188.32,188.29,0.12549]
[1734705762580,39.17187506,188.3,188.27,0.4081879]
[1734705762779,39.17187506,188.3,188.26,0.6993426]
[1734705763281,39.17187506,188.32,188.27,0.4083458]
[1734705763876,39.17187506,188.3,188.26,0.6993426]
[1734705764174,39.17187506,188.3,188.22,13.2823]
[1734705764376,39.17187506,188.3,188.22,52.45417506]
[1734705764581,39.17187506,188.3,188.23,0.12549]
[1734705764762,39.17187506,188.3,188.23,0.82137613]
[1734705764978,39.17187506,188.3,188.23,0.12549]
[1734705765188,39.17187506,188.3,188.26,0.12549]
[1734705765584,39.17187506,188.3,188.26,13.40489]
[1734705766485,39.17187506,188.3,188.29,20.0]
[1734705766693,39.17187506,188.3,188.29,20.12549]
[1734705766901,39.17187506,188.3,188.29,20.0]
[1734705768701,39.17187506,188.3,188.29,20.12549]
[1734705768909,39.17187506,188.36,188.3,0.12549]
[1734705769091,39.17187506,188.38,188.3,39.29736506]
[1734705770095,39.17187506,188.38,188.32,0.12549]
[1734705770300,39.17187506,188.34,188.31,13.2759]
[1734705770676,39.17187506,188.32,188.31,13.2759]
[1734705771208,39.17187506,188.34,188.33,20.0]
[1734705774820,39.17187506,188.36,188.33,20.12549]
[1734705774989,39.17187506,188.36,188.34,13.39929]
[1734705775197,39.17187506,188.38,188.37,20.0]
[1734705775802,78.34375012,188.38,188.27,20.0]
[1734705776096,39.17187506,188.28,188.19,22.906211]
[1734705776315,39.17187506,188.27,188.21,0.12549]
[1734705776512,39.17187506,188.27,188.2,52.45557506]
[1734705776691,39.17187506,188.27,188.2,13.2837]
[1734705777617,0.9954183,188.37,188.24,0.12549]
[1734705777921,0.9954183,188.37,188.23,0.12549]
[1734705778227,6.6385,188.38,188.23,20.12549]
[1734705778522,6.6385,188.38,188.23,0.12549]
[1734705779210,0.99549486,188.37,188.22,72.97567268]
[1734705779605,6.6385,188.38,188.22,72.97567268]
[1734705779798,6.6385,188.38,188.23,0.12549]
[1734705780104,0.99535498,188.37,188.28,0.12549]
[1734705780428,6.6385,188.38,188.28,0.12549]
[1734705780927,0.9954691,188.37,188.25,20.0]
[1734705781286,0.9954691,188.37,188.26,0.12549]
[1734705781921,0.9954691,188.37,188.29,20.0]
[1734705782120,0.9954691,188.37,188.26,13.2793]
[1734705782330,1.5286,188.36,188.19,21.269611]
[1734705782625,0.99577617,188.35,188.19,21.269611]
[1734705782819,0.99577617,188.35,188.2,13.2837]
[1734705783512,0.12549,188.34,188.19,21.269611]
[1734705783719,0.12549,188.32,188.19,21.269611]
[1734705783884,0.12549,188.3,188.19,21.269611]
[1734705784076,0.99616788,188.31,188.12,19.7237]
[1734705784266,0.99610721,188.3,188.12,19.7237]
[1734705784574,6.27509,188.29,188.13,2.128468]
[1734705784764,6.27509,188.29,188.12,13.2887]
[1734705784765,0.99624846,188.28,188.12,13.2887]
[1734705784968,0.12549,188.27,188.12,13.2887]
[1734705785190,0.99633162,188.26,188.12,13.2887]
[1734705785570,0.99633162,188.26,188.07,1.655]
[1734705785780,0.99633162,188.26,188.08,39.69337268]
[1734705786100,6.1496,188.29,188.16,0.12549]
[1734705786275,6.1496,188.29,188.18,0.12549]
[1734705787070,6.5177,188.34,188.23,20.0]
[1734705787284,0.99558267,188.33,188.24,0.12549]
[1734705787478,0.99573013,188.33,188.23,20.0]
[1734705787698,0.12549,188.32,188.08,13.2922]
[1734705787904,0.99626377,188.31,188.09,39.69337268]
[1734705788082,0.99626377,188.31,188.14,0.12549]
[1734705788287,0.99586203,188.33,188.14,0.12549]
[1734705788502,0.99586203,188.33,188.16,0.12549]
[1734705789090,0.12549,188.32,188.15,6.5177]
[1734705789303,0.99604405,188.31,188.14,20.0]
[1734705789712,0.99604405,188.31,188.15,13.2867]
[1734705790194,0.99604578,188.3,188.15,13.2867]
[1734705790511,0.99604578,188.3,188.11,13.2894]
[1734705790512,0.12549,188.29,188.11,13.2894]
[1734705790709,0.12549,188.27,188.11,13.2894]
[1734705790890,0.9963694,188.26,188.11,13.2894]
[1734705791093,0.99622518,188.33,188.11,13.2894]
[1734705791287,0.12549,188.32,188.11,13.2894]
[1734705791614,0.12549,188.3,188.11,13.2894]
[1734705791795,0.12549,188.28,188.12,0.12549]
[1734705791978,0.12549,188.26,188.14,20.0]
[1734705792184,0.12549,188.24,188.08,13.2921]
[1734705792400,0.12549,188.22,188.08,13.2921]
[1734705792613,0.12549,188.2,188.06,0.6993426]
[1734705792923,0.99669634,188.24,188.07,13.2929]
[1734705793987,0.99669634,188.24,188.12,20.0]
[1734705794512,0.99669634,188.24,188.13,0.12549]
[1734705794694,7.5239,188.32,188.17,0.12549]
[1734705794894,0.99602418,188.31,188.16,20.0]
[1734705795510,0.99602418,188.31,188.12,20.0]
[1734705795511,0.12549,188.3,188.12,20.0]
[1734705795691,0.99615619,188.29,188.13,0.12549]
[1734705796013,0.99615619,188.29,188.17,20.0]
[1734705796587,0.99599033,188.31,188.18,0.12549]
[1734705797714,0.12549,188.3,188.17,20.0]
[1734705797917,0.99622291,188.29,188.17,20.0]
[1734705798790,0.99611798,188.28,188.17,20.0]
[1734705798988,0.12549,188.27,188.17,20.0]
[1734705799206,0.99630873,188.26,188.1,13.2901]
[1734705799419,0.12549,188.25,188.1,13.2901]
[1734705799620,1.1219165,188.25,188.1,13.2901]
[1734705800488,1.1219165,188.25,188.07,13.2929]
[1734705801097,1.1219165,188.25,188.1,20.0]
[1734705801714,0.9964265,188.25,188.13,0.12549]
[1734705801898,0.99622198,188.24,188.12,20.0]
[1734705802090,0.12549,188.28,188.12,20.0]
[1734705802409,0.99641246,188.27,188.13,0.12549]
[1734705803122,31.79,188.22,188.06,0.6993426]
[1734705803438,31.79,188.22,187.94,1.649]
[1734705803439,39.6641,188.2,187.94,1.649]
[1734705803586,22.76354283,188.19,187.94,1.649]
[1734705803790,54.55354283,188.19,187.94,1.649]
[1734705803987,6.1102,188.13,187.9,8.08135906]
[1734705804211,22.76368955,188.12,187.9,8.08135906]
[1734705804424,256.52374406,188.22,187.91,13.3042]
[1734705804717,7.05495051,188.18,187.91,13.3042]
[1734705804923,8.42930158,188.17,187.87,37.48449941]
[1734705805218,8.42930158,188.17,187.87,0.6993426]
[1734705805219,0.12549,188.11,187.87,0.6993426]
[1734705805431,0.12549,188.09,187.87,0.6993426]
[1734705805728,21.33007532,188.08,187.87,0.6993426]
[1734705806421,0.12549,188.07,187.87,0.6993426]
[1734705806727,0.12549,188.05,187.87,0.6993426]
[1734705806932,0.12549,188.03,187.87,0.6993426]
[1734705807108,0.12549,188.01,187.87,0.6993426]
[1734705807307,0.12549,187.99,187.87,0.6993426]
[1734705807516,6.64449,187.99,187.87,0.6993426]
[1734705807709,0.12549,187.97,187.87,0.6993426]
[1734705807907,0.88589531,187.98,187.87,0.6993426]
[1734705809943,0.12549,187.97,187.87,0.6993426]
[1734705810312,0.88589531,187.98,187.87,0.6993426]
[1734705810618,0.88589531,187.98,187.88,0.12549]
[1734705810946,0.88589531,188.04,187.92,20.0]
[1734705811117,0.88589531,188.07,187.92,20.0]
[1734705812326,0.12549,188.06,187.87,0.6993426]
[1734705812529,0.12549,188.06,187.87,0.5971449]
[1734705812530,0.12549,188.04,187.87,0.5971449]
[1734705812721,0.12549,188.02,187.87,0.5971449]
[1734705813046,0.88589531,188.01,187.87,0.5971449]
[1734705813652,0.12549,188.0,187.87,0.5971449]
[1734705813854,0.12549,187.98,187.87,0.5971449]
[1734705814516,1.01138531,187.98,187.87,0.5971449]
[1734705814920,0.88589531,187.98,187.87,0.5971449]
[1734705815456,0.12549,187.97,187.87,0.5971449]
[1734705815739,0.12549,187.95,187.87,0.5971449]
[1734705815956,0.12549,187.92,187.78,6.3766]
[1734705816124,7.05495051,187.91,187.72,0.79863215]
[1734705816451,1.596,187.93,187.73,6.5747]
[1734705816452,0.88589531,187.9,187.73,6.5747]
[1734705816638,0.88589531,187.92,187.74,0.92393881]
[1734705816944,0.88589531,187.91,187.72,2.93121801]
[1734705817143,0.31937,187.87,187.72,2.93121801]
[1734705817353,0.31937,187.87,187.73,0.12549]
[1734705817544,0.31937,187.87,187.72,15.449987]
[1734705817728,0.31937,187.87,187.72,0.79864658]
[1734705817929,0.31937,187.87,187.73,33.08273]
[1734705818150,0.31937,187.87,187.75,0.12549]
[1734705818460,0.31937,187.87,187.77,0.12549]
[1734705818634,0.31937,187.87,187.75,46.25627268]
[1734705818635,0.31937,187.87,187.79,0.12549]
[1734705818835,0.31937,187.87,187.81,0.12549]
[1734705819052,0.31937,187.87,187.83,0.12549]
[1734705819242,0.31937,187.87,187.85,0.12549]
[1734705819831,0.31937,187.87,187.85,13.43349]
[1734705821154,0.31937,187.87,187.85,13.308]
[1734705823153,0.88589531,188.04,187.88,26.4335]
[1734705823354,0.88589531,188.04,187.89,0.92345799]
[1734705824063,0.88589531,188.04,187.91,0.12549]
[1734705824737,0.88589531,188.06,187.93,0.12549]
[1734705825055,0.88589531,188.1,187.93,0.92323915]
[1734705825351,1.5058,188.15,188.0,23.902374]
[1734705825539,0.88589531,188.14,188.0,0.12549]
[1734705825746,0.88589531,188.14,187.99,20.0]
[1734705825938,0.12549,188.13,187.99,20.0]
[1734705826165,0.88589531,188.14,187.97,6.5843]
[1734705826166,0.12549,188.11,188.0,20.0]
[1734705826462,0.12549,188.09,187.89,13.3052]
[1734705826757,23.776884,188.07,187.93,6.664951]
[1734705826925,0.88589531,188.06,187.93,6.664951]
[1734705827128,0.88589531,188.06,187.9,0.12549]
[1734705827364,23.776884,188.05,187.89,13.3052]
[1734705827545,0.88589531,188.04,187.89,26.6104]
[1734705827738,0.88589531,188.04,187.9,0.12549]
[1734705828054,0.88589531,188.04,187.88,6.4335]
[1734705828252,0.88589531,188.13,187.91,0.12549]
[1734705828571,0.88589531,188.13,187.91,0.92318391]
[1734705829062,0.88589531,188.13,187.96,0.12549]